[Event "*** Titled Tuesday Blitz"]
[Site "Chess.com"]
[Date "2021.04.06"]
[Round "4"]
[White "NishaOnYoutube"]
[Black "SF-96"]
[Result "0-1"]
[WhiteElo "2268"]
[BlackElo "2577"]
[TimeControl "180+1"]
[EndTime "10:41:04 PDT"]
[Termination "SF-96 won by checkmate"]

1. e4 {[%clk 0:03:00.9]} 1... e5 {[%clk 0:03:00]} 2. Nf3 {[%clk 0:03:00.3]} 2...
Nc6 {[%clk 0:03:00.6]} 3. Nc3 {[%clk 0:03:00.3]} 3... Nf6 {[%clk 0:03:00.7]} 4.
Bb5 {[%clk 0:03:00.4]} 4... Bb4 {[%clk 0:03:01.1]} 5. O-O {[%clk 0:02:59.2]}
5... O-O {[%clk 0:02:59.6]} 6. d3 {[%clk 0:02:59.7]} 6... d6 {[%clk 0:02:58.6]}
7. Ne2 {[%clk 0:02:56.3]} 7... Ne7 {[%clk 0:02:55.7]} 8. c3 {[%clk 0:02:56.5]}
8... Ba5 {[%clk 0:02:54.7]} 9. Ng3 {[%clk 0:02:56.6]} 9... Ng6 {[%clk
0:02:45.9]} 10. h3 {[%clk 0:02:47.3]} 10... h6 {[%clk 0:02:31]} 11. d4 {[%clk
0:02:42.9]} 11... c6 {[%clk 0:02:26]} 12. Bd3 {[%clk 0:02:42]} 12... Re8 {[%clk
0:02:24.1]} 13. Bc2 {[%clk 0:02:30.3]} 13... Bb6 {[%clk 0:02:19.4]} 14. Re1
{[%clk 0:02:26.6]} 14... Nh7 {[%clk 0:02:03.3]} 15. Nf5 {[%clk 0:02:06.3]} 15...
exd4 {[%clk 0:01:35.2]} 16. N3xd4 {[%clk 0:01:57.6]} 16... Qf6 {[%clk
0:01:22.4]} 17. Be3 {[%clk 0:01:29.4]} 17... Ng5 {[%clk 0:01:16.9]} 18. f3
{[%clk 0:00:30.6]} 18... d5 {[%clk 0:01:15.2]} 19. Bf2 {[%clk 0:00:23.4]} 19...
dxe4 {[%clk 0:01:12.7]} 20. fxe4 {[%clk 0:00:23.4]} 20... Nf4 {[%clk 0:01:04.3]}
21. Kh2 {[%clk 0:00:20.6]} 21... Qg6 {[%clk 0:00:59.8]} 22. Rg1 {[%clk
0:00:19.8]} 22... Nxe4 {[%clk 0:00:55.8]} 23. Bxe4 {[%clk 0:00:16.5]} 23... Rxe4
{[%clk 0:00:56.7]} 24. Nh4 {[%clk 0:00:12.8]} 24... Qf6 {[%clk 0:00:52.4]} 25.
Qf3 {[%clk 0:00:11.9]} 25... Re8 {[%clk 0:00:42.6]} 26. Rad1 {[%clk 0:00:10.6]}
26... Nd5 {[%clk 0:00:36.4]} 27. Rge1 {[%clk 0:00:09.5]} 27... Rxe1 {[%clk
0:00:30.5]} 28. Rxe1 {[%clk 0:00:09.2]} 28... Bd7 {[%clk 0:00:27.2]} 29. Bg3
{[%clk 0:00:05.7]} 29... Bxd4 {[%clk 0:00:22.2]} 30. cxd4 {[%clk 0:00:05.6]}
30... Qxd4 {[%clk 0:00:22.9]} 31. Rf1 {[%clk 0:00:05.8]} 31... Nf6 {[%clk
0:00:20.3]} 32. Re1 {[%clk 0:00:05.6]} 32... Re8 {[%clk 0:00:19.3]} 33. Rd1
{[%clk 0:00:05]} 33... Qe4 {[%clk 0:00:17.7]} 34. Qf2 {[%clk 0:00:04.7]} 34...
Be6 {[%clk 0:00:14.9]} 35. Nf3 {[%clk 0:00:05]} 35... Qa4 {[%clk 0:00:13.4]} 36.
Re1 {[%clk 0:00:05.3]} 36... Bxa2 {[%clk 0:00:11.5]} 37. Be5 {[%clk 0:00:05.5]}
37... Nd7 {[%clk 0:00:10.3]} 38. Qg3 {[%clk 0:00:05.4]} 38... Nxe5 {[%clk
0:00:10.7]} 39. Nxe5 {[%clk 0:00:05.4]} 39... Be6 {[%clk 0:00:10]} 40. Qf3
{[%clk 0:00:04.6]} 40... Qd4 {[%clk 0:00:08.9]} 41. Re2 {[%clk 0:00:04.5]} 41...
Bd5 {[%clk 0:00:08.9]} 42. Qg3 {[%clk 0:00:03.7]} 42... f6 {[%clk 0:00:09.5]}
43. Nf3 {[%clk 0:00:01.9]} 43... Bxf3 {[%clk 0:00:04.1]} 44. Rxe8+ {[%clk
0:00:02.4]} 44... Kf7 {[%clk 0:00:04.8]} 45. Qxf3 {[%clk 0:00:02.8]} 45... Kxe8
{[%clk 0:00:04.8]} 46. Qe2+ {[%clk 0:00:03.1]} 46... Qe5+ {[%clk 0:00:05.4]} 47.
Qxe5+ {[%clk 0:00:02.7]} 47... fxe5 {[%clk 0:00:06.3]} 48. Kg3 {[%clk
0:00:03.6]} 48... Ke7 {[%clk 0:00:06.7]} 49. Kf3 {[%clk 0:00:04.5]} 49... Ke6
{[%clk 0:00:07.6]} 50. Ke4 {[%clk 0:00:05.4]} 50... b5 {[%clk 0:00:08]} 51. Ke3
{[%clk 0:00:06.3]} 51... a5 {[%clk 0:00:08.6]} 52. Ke4 {[%clk 0:00:07.2]} 52...
a4 {[%clk 0:00:08.9]} 53. b3 {[%clk 0:00:08.1]} 53... axb3 {[%clk 0:00:08.9]}
54. g4 {[%clk 0:00:08.7]} 54... b2 {[%clk 0:00:09.8]} 55. Ke3 {[%clk 0:00:08.4]}
55... b1=Q {[%clk 0:00:10.7]} 56. Ke2 {[%clk 0:00:08.9]} 56... Qb3 {[%clk
0:00:11.2]} 57. Kd2 {[%clk 0:00:09]} 57... Qxh3 {[%clk 0:00:11.8]} 58. Ke2
{[%clk 0:00:09.4]} 58... b4 {[%clk 0:00:12.3]} 59. Kf2 {[%clk 0:00:10.3]} 59...
Qxg4 {[%clk 0:00:12.4]} 60. Ke1 {[%clk 0:00:10.2]} 60... Qg2 {[%clk 0:00:12.6]}
61. Kd1 {[%clk 0:00:10]} 61... b3 {[%clk 0:00:13.5]} 62. Kc1 {[%clk 0:00:10.9]}
62... Qc2# {[%clk 0:00:12.8]} 0-1

[Event "*** Titled Tuesday Blitz"]
[Site "Chess.com"]
[Date "2021.04.06"]
[Round "4"]
[White "ViditYT"]
[Black "Susal_De_Silva"]
[Result "1-0"]
[WhiteElo "2940"]
[BlackElo "2680"]
[TimeControl "180+1"]
[EndTime "10:41:10 PDT"]
[Termination "ViditYT won on time"]

1. d4 {[%clk 0:02:55.6]} 1... Nf6 {[%clk 0:03:00]} 2. c4 {[%clk 0:02:52.4]} 2...
e6 {[%clk 0:03:00.3]} 3. Nf3 {[%clk 0:02:51.4]} 3... b6 {[%clk 0:03:00.1]} 4. g3
{[%clk 0:02:51.4]} 4... Bb7 {[%clk 0:03:01]} 5. Bg2 {[%clk 0:02:50.5]} 5... g6
{[%clk 0:03:01.9]} 6. O-O {[%clk 0:02:42.8]} 6... Bg7 {[%clk 0:03:02]} 7. Qc2
{[%clk 0:02:38.6]} 7... Be4 {[%clk 0:03:00.8]} 8. Qb3 {[%clk 0:02:37.1]} 8...
Nc6 {[%clk 0:03:00.6]} 9. Rd1 {[%clk 0:02:26.6]} 9... O-O {[%clk 0:02:57.4]} 10.
Nbd2 {[%clk 0:02:07.8]} 10... Na5 {[%clk 0:02:54.7]} 11. Qc3 {[%clk 0:02:06.6]}
11... c5 {[%clk 0:02:55]} 12. Nxe4 {[%clk 0:02:02.8]} 12... Nxe4 {[%clk
0:02:54.1]} 13. Qc2 {[%clk 0:02:02.2]} 13... d5 {[%clk 0:02:42]} 14. cxd5 {[%clk
0:01:51.2]} 14... exd5 {[%clk 0:02:42.9]} 15. dxc5 {[%clk 0:01:50.4]} 15... bxc5
{[%clk 0:02:43.8]} 16. Nd2 {[%clk 0:01:28.9]} 16... Nf6 {[%clk 0:02:19.8]} 17.
Qxc5 {[%clk 0:01:24.1]} 17... Rc8 {[%clk 0:02:18.1]} 18. Qxa7 {[%clk 0:01:11.7]}
18... Re8 {[%clk 0:02:09.6]} 19. e3 {[%clk 0:00:46.5]} 19... Nd7 {[%clk
0:01:25.1]} 20. Qa6 {[%clk 0:00:40.2]} 20... Nc5 {[%clk 0:01:17.9]} 21. Qb5
{[%clk 0:00:39.7]} 21... Ne6 {[%clk 0:01:05.6]} 22. Nb3 {[%clk 0:00:29.5]} 22...
Nxb3 {[%clk 0:00:59.4]} 23. axb3 {[%clk 0:00:22.3]} 23... d4 {[%clk 0:00:58.5]}
24. Bd2 {[%clk 0:00:22]} 24... Rc2 {[%clk 0:00:54.4]} 25. Rab1 {[%clk
0:00:17.3]} 25... d3 {[%clk 0:00:49.8]} 26. Ba5 {[%clk 0:00:09.8]} 26... Qc8
{[%clk 0:00:41.1]} 27. Qxd3 {[%clk 0:00:10]} 27... Bxb2 {[%clk 0:00:18.4]} 28.
Rd2 {[%clk 0:00:07.1]} 28... Rc1+ {[%clk 0:00:18.2]} 29. Rxc1 {[%clk 0:00:07.1]}
29... Qxc1+ {[%clk 0:00:18.8]} 30. Rd1 {[%clk 0:00:07.4]} 30... Qc5 {[%clk
0:00:17.9]} 31. b4 {[%clk 0:00:07.4]} 31... Qh5 {[%clk 0:00:17.5]} 32. Qb3
{[%clk 0:00:06]} 32... Bf6 {[%clk 0:00:14.3]} 33. b5 {[%clk 0:00:03.7]} 33...
Rb8 {[%clk 0:00:14]} 34. Bc6 {[%clk 0:00:02.4]} 34... Nd8 {[%clk 0:00:10.8]} 35.
Qc2 {[%clk 0:00:01.8]} 35... Nxc6 {[%clk 0:00:09.7]} 36. bxc6 {[%clk 0:00:02.4]}
36... Rc8 {[%clk 0:00:10.3]} 37. Be1 {[%clk 0:00:02]} 37... Rxc6 {[%clk
0:00:07.9]} 38. Qxc6 {[%clk 0:00:02.6]} 38... Qxd1 {[%clk 0:00:08.5]} 39. Qxf6
{[%clk 0:00:03.2]} 39... Qxe1+ {[%clk 0:00:09.1]} 40. Kg2 {[%clk 0:00:03.9]}
40... Qe2 {[%clk 0:00:09.1]} 41. Qd8+ {[%clk 0:00:04.2]} 41... Kg7 {[%clk
0:00:09.7]} 42. Qd4+ {[%clk 0:00:05.1]} 42... Kg8 {[%clk 0:00:10.4]} 43. h4
{[%clk 0:00:05.8]} 43... Qa2 {[%clk 0:00:10.8]} 44. g4 {[%clk 0:00:05.8]} 44...
Qa8+ {[%clk 0:00:11.3]} 45. f3 {[%clk 0:00:06.1]} 45... Qe8 {[%clk 0:00:11.8]}
46. Kg3 {[%clk 0:00:06.3]} 46... Qe7 {[%clk 0:00:11.7]} 47. Qf4 {[%clk
0:00:04.3]} 47... Qe8 {[%clk 0:00:11.7]} 48. h5 {[%clk 0:00:04.5]} 48... gxh5
{[%clk 0:00:07.3]} 49. gxh5 {[%clk 0:00:04.6]} 49... Qc6 {[%clk 0:00:06.3]} 50.
Qg5+ {[%clk 0:00:04.4]} 50... Kf8 {[%clk 0:00:06.3]} 51. h6 {[%clk 0:00:04.5]}
51... Qd6+ {[%clk 0:00:04.7]} 52. f4 {[%clk 0:00:03.4]} 52... Qe6 {[%clk
0:00:03]} 53. Qg7+ {[%clk 0:00:03.6]} 53... Ke7 {[%clk 0:00:03.9]} 54. Qe5
{[%clk 0:00:03.3]} 54... Qxe5 {[%clk 0:00:04.3]} 55. fxe5 {[%clk 0:00:03.7]}
55... Ke6 {[%clk 0:00:03.2]} 56. Kf4 {[%clk 0:00:04]} 56... Kd5 {[%clk
0:00:03.4]} 57. Kf5 {[%clk 0:00:04.2]} 1-0

[Event "*** Titled Tuesday Blitz"]
[Site "Chess.com"]
[Date "2021.04.06"]
[Round "4"]
[White "Marianov_Podstavnikov"]
[Black "laskerisalive"]
[Result "1/2-1/2"]
[WhiteElo "2346"]
[BlackElo "2518"]
[TimeControl "180+1"]
[EndTime "10:41:10 PDT"]
[Termination "Game drawn by agreement"]

1. e4 {[%clk 0:02:58.2]} 1... e5 {[%clk 0:02:37.9]} 2. Nf3 {[%clk 0:02:57.6]}
2... Nc6 {[%clk 0:02:37.4]} 3. Bc4 {[%clk 0:02:57.6]} 3... Bc5 {[%clk
0:02:32.1]} 4. c3 {[%clk 0:02:57.4]} 4... d6 {[%clk 0:02:30.7]} 5. d4 {[%clk
0:02:46]} 5... exd4 {[%clk 0:02:30.5]} 6. cxd4 {[%clk 0:02:46]} 6... Bb6 {[%clk
0:02:30]} 7. h3 {[%clk 0:02:41.3]} 7... Nf6 {[%clk 0:02:29.5]} 8. Nc3 {[%clk
0:02:41.1]} 8... O-O {[%clk 0:02:28.9]} 9. O-O {[%clk 0:02:41.1]} 9... Nxe4
{[%clk 0:02:28.1]} 10. Nxe4 {[%clk 0:02:29]} 10... d5 {[%clk 0:02:27.9]} 11.
Bxd5 {[%clk 0:02:21]} 11... Qxd5 {[%clk 0:02:26.5]} 12. Nc3 {[%clk 0:02:21.5]}
12... Qd8 {[%clk 0:02:14.5]} 13. d5 {[%clk 0:02:19.7]} 13... Ne7 {[%clk
0:02:10.5]} 14. Bg5 {[%clk 0:02:13.1]} 14... f6 {[%clk 0:02:09.3]} 15. Bf4
{[%clk 0:02:09.8]} 15... Ng6 {[%clk 0:02:08]} 16. Bg3 {[%clk 0:02:08.9]} 16...
f5 {[%clk 0:01:59.1]} 17. Be5 {[%clk 0:01:29.6]} 17... Nxe5 {[%clk 0:01:51.1]}
18. Nxe5 {[%clk 0:01:29.8]} 18... f4 {[%clk 0:01:47.1]} 19. Qf3 {[%clk
0:01:13.5]} 19... Qf6 {[%clk 0:01:41]} 20. Rfe1 {[%clk 0:01:10.2]} 20... Bd4
{[%clk 0:01:34.3]} 21. Ng4 {[%clk 0:01:02.5]} 21... Qb6 {[%clk 0:01:31.7]} 22.
Re2 {[%clk 0:00:48]} 22... Bf5 {[%clk 0:01:21.5]} 23. Rae1 {[%clk 0:00:43]}
23... Rad8 {[%clk 0:01:12.1]} 24. Rd2 {[%clk 0:00:29.4]} 24... Bxg4 {[%clk
0:00:54.3]} 25. hxg4 {[%clk 0:00:28.6]} 25... Bxc3 {[%clk 0:00:48.3]} 26. bxc3
{[%clk 0:00:24.2]} 26... Rd7 {[%clk 0:00:42.5]} 27. c4 {[%clk 0:00:21]} 27...
Qa5 {[%clk 0:00:38.6]} 28. Rde2 {[%clk 0:00:20.3]} 28... Qc5 {[%clk 0:00:35.9]}
29. Re8 {[%clk 0:00:19.9]} 29... Rf7 {[%clk 0:00:33.8]} 30. Rxf8+ {[%clk
0:00:19.8]} 30... Rxf8 {[%clk 0:00:33.5]} 31. Qe4 {[%clk 0:00:20.2]} 31... h6
{[%clk 0:00:26.2]} 32. Qe6+ {[%clk 0:00:20.2]} 32... Kh8 {[%clk 0:00:25.9]} 33.
Qe7 {[%clk 0:00:20.6]} 33... Qd6 {[%clk 0:00:19.9]} 34. Qxd6 {[%clk 0:00:20.4]}
34... cxd6 {[%clk 0:00:19.4]} 35. Re7 {[%clk 0:00:21]} 35... Rc8 {[%clk
0:00:18.8]} 36. Rxb7 {[%clk 0:00:20.8]} 36... Rxc4 {[%clk 0:00:18.5]} 37. Rxa7
{[%clk 0:00:21.1]} 37... Rd4 {[%clk 0:00:18.3]} 38. Rf7 {[%clk 0:00:20.3]} 38...
g5 {[%clk 0:00:15.9]} 39. Rf6 {[%clk 0:00:20.6]} 39... Rxd5 {[%clk 0:00:13.9]}
40. Rxh6+ {[%clk 0:00:20.9]} 40... Kg7 {[%clk 0:00:14.5]} 41. Re6 {[%clk
0:00:21]} 41... Ra5 {[%clk 0:00:13.2]} 42. Rxd6 {[%clk 0:00:20.8]} 42... Rxa2
{[%clk 0:00:12.8]} 43. Kf1 {[%clk 0:00:19.5]} 43... Rb2 {[%clk 0:00:12.3]} 44.
Ra6 {[%clk 0:00:18.7]} 44... Rc2 {[%clk 0:00:12.1]} 45. Re6 {[%clk 0:00:18.7]}
45... Rb2 {[%clk 0:00:11.8]} 46. Re2 {[%clk 0:00:18.8]} 46... Rb1+ {[%clk
0:00:11.5]} 47. Re1 {[%clk 0:00:19.2]} 47... Rb2 {[%clk 0:00:12.4]} 48. Re5
{[%clk 0:00:19]} 48... Kf6 {[%clk 0:00:09.8]} 49. Rf5+ {[%clk 0:00:19.3]} 49...
Kg6 {[%clk 0:00:10.2]} 50. f3 {[%clk 0:00:19]} 50... Rb1+ {[%clk 0:00:09.8]} 51.
Kf2 {[%clk 0:00:18.7]} 51... Rb2+ {[%clk 0:00:10.7]} 52. Kg1 {[%clk 0:00:19.1]}
52... Rb1+ {[%clk 0:00:11.5]} 53. Kh2 {[%clk 0:00:19.6]} 53... Ra1 {[%clk
0:00:11.4]} 54. Rb5 {[%clk 0:00:19.2]} 54... Ra2 {[%clk 0:00:11]} 55. Rb6+
{[%clk 0:00:19.6]} 55... Kg7 {[%clk 0:00:11]} 56. Rc6 {[%clk 0:00:19.9]} 56...
Kf7 {[%clk 0:00:10.4]} 57. Rh6 {[%clk 0:00:19.9]} 57... Kg7 {[%clk 0:00:10.4]}
58. Rb6 {[%clk 0:00:20]} 58... Kf7 {[%clk 0:00:10.5]} 59. Kh3 {[%clk 0:00:20.5]}
59... Kg7 {[%clk 0:00:10.3]} 60. g3 {[%clk 0:00:19.5]} 60... Rf2 {[%clk
0:00:09.6]} 61. gxf4 {[%clk 0:00:18.5]} 61... Rxf3+ {[%clk 0:00:09.3]} 62. Kg2
{[%clk 0:00:18.9]} 62... Rxf4 {[%clk 0:00:10.1]} 63. Kg3 {[%clk 0:00:19.3]}
63... Re4 {[%clk 0:00:09.9]} 64. Ra6 {[%clk 0:00:19.2]} 64... Rd4 {[%clk
0:00:10.1]} 65. Rb6 {[%clk 0:00:19.4]} 65... Rc4 {[%clk 0:00:10.1]} 66. Kf3
{[%clk 0:00:19]} 66... Rd4 {[%clk 0:00:10.4]} 67. Kg3 {[%clk 0:00:19]} 67... Rc4
{[%clk 0:00:08.2]} 1/2-1/2

[Event "*** Titled Tuesday Blitz"]
[Site "Chess.com"]
[Date "2021.04.06"]
[Round "4"]
[White "eljanov"]
[Black "azikom"]
[Result "1-0"]
[WhiteElo "2880"]
[BlackElo "2696"]
[TimeControl "180+1"]
[EndTime "10:41:13 PDT"]
[Termination "eljanov won on time"]

1. d4 {[%clk 0:03:00.9]} 1... d5 {[%clk 0:03:00.3]} 2. Nf3 {[%clk 0:03:00.3]}
2... Nf6 {[%clk 0:02:59.5]} 3. Bf4 {[%clk 0:03:00.8]} 3... c6 {[%clk 0:02:58.6]}
4. e3 {[%clk 0:02:59.8]} 4... Qb6 {[%clk 0:02:58.1]} 5. b3 {[%clk 0:02:58.9]}
5... Bf5 {[%clk 0:02:57.4]} 6. Bd3 {[%clk 0:02:58.8]} 6... Bxd3 {[%clk
0:02:55.9]} 7. Qxd3 {[%clk 0:02:59.7]} 7... e6 {[%clk 0:02:56.5]} 8. O-O {[%clk
0:02:59.5]} 8... Nbd7 {[%clk 0:02:53.4]} 9. c4 {[%clk 0:02:59.6]} 9... a5 {[%clk
0:02:53.1]} 10. Nc3 {[%clk 0:02:57.6]} 10... Be7 {[%clk 0:02:46.8]} 11. e4
{[%clk 0:02:35.7]} 11... dxe4 {[%clk 0:02:45.6]} 12. Nxe4 {[%clk 0:02:36.6]}
12... Nxe4 {[%clk 0:02:46.1]} 13. Qxe4 {[%clk 0:02:37.5]} 13... O-O {[%clk
0:02:45.2]} 14. Qc2 {[%clk 0:02:13.9]} 14... Rfe8 {[%clk 0:02:40.4]} 15. Rfe1
{[%clk 0:01:53.5]} 15... Nf8 {[%clk 0:02:22.1]} 16. a4 {[%clk 0:01:49]} 16...
Rad8 {[%clk 0:02:17.1]} 17. h4 {[%clk 0:01:47.9]} 17... Bf6 {[%clk 0:02:00]} 18.
Be5 {[%clk 0:01:47.6]} 18... Bxe5 {[%clk 0:01:57.2]} 19. Rxe5 {[%clk 0:01:47.6]}
19... h6 {[%clk 0:01:52.9]} 20. Rae1 {[%clk 0:01:44.5]} 20... Qc7 {[%clk
0:01:39.1]} 21. h5 {[%clk 0:01:38.3]} 21... Re7 {[%clk 0:01:36.4]} 22. Qd2
{[%clk 0:01:31.1]} 22... Red7 {[%clk 0:01:35]} 23. Qxa5 {[%clk 0:01:29.9]} 23...
Qb8 {[%clk 0:01:28.2]} 24. Qc3 {[%clk 0:01:28.1]} 24... Nh7 {[%clk 0:01:27.5]}
25. b4 {[%clk 0:01:23.3]} 25... Nf6 {[%clk 0:01:26.8]} 26. b5 {[%clk 0:01:22.5]}
26... cxb5 {[%clk 0:01:24.2]} 27. axb5 {[%clk 0:01:21.7]} 27... Qc7 {[%clk
0:01:23.4]} 28. Rc5 {[%clk 0:01:17.9]} 28... Qf4 {[%clk 0:01:18.4]} 29. Qe3
{[%clk 0:01:12.9]} 29... Qb8 {[%clk 0:01:08.3]} 30. Ra1 {[%clk 0:00:47.1]} 30...
b6 {[%clk 0:00:59.5]} 31. Rc6 {[%clk 0:00:47.3]} 31... Nxh5 {[%clk 0:00:59.1]}
32. Qe5 {[%clk 0:00:43.3]} 32... Nf4 {[%clk 0:00:50.5]} 33. Qxb8 {[%clk
0:00:37.6]} 33... Rxb8 {[%clk 0:00:50.2]} 34. Kf1 {[%clk 0:00:37.9]} 34... g5
{[%clk 0:00:48.3]} 35. g3 {[%clk 0:00:35.3]} 35... Ng6 {[%clk 0:00:47]} 36. g4
{[%clk 0:00:08.4]} 36... Kg7 {[%clk 0:00:45.1]} 37. Ra6 {[%clk 0:00:08.1]} 37...
Rdb7 {[%clk 0:00:44.8]} 38. Rd6 {[%clk 0:00:08.3]} 38... Rc7 {[%clk 0:00:37.8]}
39. Rc6 {[%clk 0:00:07.3]} 39... Rcb7 {[%clk 0:00:38]} 40. Ke1 {[%clk
0:00:07.7]} 40... Ne7 {[%clk 0:00:36.8]} 41. Rd6 {[%clk 0:00:07.9]} 41... Rc7
{[%clk 0:00:32.8]} 42. Ne5 {[%clk 0:00:07.8]} 42... h5 {[%clk 0:00:20]} 43. gxh5
{[%clk 0:00:07.4]} 43... Nf5 {[%clk 0:00:19.8]} 44. Rd7 {[%clk 0:00:07.3]} 44...
Rxd7 {[%clk 0:00:16.8]} 45. Nxd7 {[%clk 0:00:07.4]} 45... Rd8 {[%clk 0:00:12.3]}
46. Nxb6 {[%clk 0:00:06.6]} 46... Rxd4 {[%clk 0:00:12.2]} 47. c5 {[%clk
0:00:06.1]} 47... Rb4 {[%clk 0:00:12.1]} 48. c6 {[%clk 0:00:06.1]} 48... Rxb5
{[%clk 0:00:11.1]} 49. c7 {[%clk 0:00:06.4]} 49... Rb1+ {[%clk 0:00:10.4]} 50.
Kd2 {[%clk 0:00:06.2]} 50... Ne7 {[%clk 0:00:10.3]} 51. c8=Q {[%clk 0:00:04.2]}
51... Nxc8 {[%clk 0:00:10.3]} 52. Nxc8 {[%clk 0:00:05.1]} 52... Rh1 {[%clk
0:00:09.8]} 53. Nd6 {[%clk 0:00:05.1]} 53... Rh2 {[%clk 0:00:09.5]} 54. Ke2
{[%clk 0:00:05]} 54... f5 {[%clk 0:00:05.9]} 55. Ne8+ {[%clk 0:00:03.8]} 55...
Kf7 {[%clk 0:00:04.8]} 56. Nc7 {[%clk 0:00:04]} 56... g4 {[%clk 0:00:02.5]} 57.
Ke3 {[%clk 0:00:04.3]} 1-0

[Event "*** Titled Tuesday Blitz"]
[Site "Chess.com"]
[Date "2021.04.06"]
[Round "4"]
[White "BAS8892"]
[Black "AttilaTurzo"]
[Result "0-1"]
[WhiteElo "2649"]
[BlackElo "2513"]
[TimeControl "180+1"]
[EndTime "10:41:14 PDT"]
[Termination "AttilaTurzo won on time"]

1. c4 {[%clk 0:03:00.8]} 1... c6 {[%clk 0:02:59.8]} 2. g3 {[%clk 0:02:59.5]}
2... d5 {[%clk 0:03:00.7]} 3. Bg2 {[%clk 0:02:59.9]} 3... Nf6 {[%clk 0:03:00.6]}
4. Nf3 {[%clk 0:03:00.5]} 4... Bf5 {[%clk 0:02:56.2]} 5. b3 {[%clk 0:02:59.8]}
5... e6 {[%clk 0:02:54.2]} 6. O-O {[%clk 0:02:59.8]} 6... h6 {[%clk 0:02:54.6]}
7. d3 {[%clk 0:02:59.4]} 7... Nbd7 {[%clk 0:02:54.1]} 8. Bb2 {[%clk 0:02:59.5]}
8... Bc5 {[%clk 0:02:53.5]} 9. Nbd2 {[%clk 0:02:59]} 9... O-O {[%clk 0:02:53.4]}
10. Qc2 {[%clk 0:02:57]} 10... a5 {[%clk 0:02:53.1]} 11. a3 {[%clk 0:02:56.4]}
11... Qe7 {[%clk 0:02:50.6]} 12. Rfe1 {[%clk 0:02:53.9]} 12... Bh7 {[%clk
0:02:49.5]} 13. h3 {[%clk 0:02:53.6]} 13... Rfd8 {[%clk 0:02:46]} 14. Rad1
{[%clk 0:02:52.6]} 14... e5 {[%clk 0:02:44.1]} 15. Qc1 {[%clk 0:02:24.5]} 15...
e4 {[%clk 0:02:42.9]} 16. Nd4 {[%clk 0:02:22.3]} 16... Bxd4 {[%clk 0:02:33.8]}
17. Bxd4 {[%clk 0:02:21.2]} 17... c5 {[%clk 0:02:33.9]} 18. Bb2 {[%clk
0:02:16.4]} 18... e3 {[%clk 0:02:32.2]} 19. Nf3 {[%clk 0:02:06.8]} 19... exf2+
{[%clk 0:02:23.6]} 20. Kxf2 {[%clk 0:02:06.7]} 20... Re8 {[%clk 0:02:08.5]} 21.
e3 {[%clk 0:02:04.6]} 21... Rad8 {[%clk 0:02:07.3]} 22. g4 {[%clk 0:02:03]}
22... b6 {[%clk 0:02:06.6]} 23. Kg1 {[%clk 0:01:57.7]} 23... Nf8 {[%clk
0:02:01.7]} 24. Ne5 {[%clk 0:01:56.4]} 24... Qd6 {[%clk 0:01:53.4]} 25. d4
{[%clk 0:01:55.1]} 25... cxd4 {[%clk 0:01:47.9]} 26. exd4 {[%clk 0:01:54.3]}
26... Be4 {[%clk 0:01:46.3]} 27. Qd2 {[%clk 0:01:47.4]} 27... Ne6 {[%clk
0:01:36.4]} 28. Qf2 {[%clk 0:01:45.9]} 28... Bxg2 {[%clk 0:01:28.7]} 29. Qxg2
{[%clk 0:01:45.8]} 29... Ng5 {[%clk 0:01:27.2]} 30. Rf1 {[%clk 0:01:41.2]} 30...
Nge4 {[%clk 0:01:24.5]} 31. h4 {[%clk 0:01:35]} 31... g5 {[%clk 0:01:22.4]} 32.
hxg5 {[%clk 0:01:31]} 32... hxg5 {[%clk 0:01:23.3]} 33. Rf5 {[%clk 0:01:26.8]}
33... a4 {[%clk 0:01:12.7]} 34. Rdf1 {[%clk 0:01:26.1]} 34... axb3 {[%clk
0:01:11]} 35. cxd5 {[%clk 0:01:25.8]} 35... Kg7 {[%clk 0:00:58.7]} 36. Nc4
{[%clk 0:01:15.3]} 36... Qg3 {[%clk 0:00:54.8]} 37. Rxg5+ {[%clk 0:00:44]} 37...
Kh6 {[%clk 0:00:39.6]} 38. Rgf5 {[%clk 0:00:43.6]} 38... Qxg2+ {[%clk
0:00:37.4]} 39. Kxg2 {[%clk 0:00:43.7]} 39... Nxd5 {[%clk 0:00:21.5]} 40. Rxf7
{[%clk 0:00:24.2]} 40... b5 {[%clk 0:00:21.5]} 41. Bc1+ {[%clk 0:00:23.7]} 41...
Kg6 {[%clk 0:00:20.1]} 42. Ne5+ {[%clk 0:00:23.3]} 42... Rxe5 {[%clk 0:00:17.6]}
43. dxe5 {[%clk 0:00:23.5]} 43... Rc8 {[%clk 0:00:12.8]} 44. Rd7 {[%clk
0:00:13.5]} 44... Nb6 {[%clk 0:00:11.3]} 45. Rb7 {[%clk 0:00:10.7]} 45... Rc6
{[%clk 0:00:11.1]} 46. Re1 {[%clk 0:00:08]} 46... Nc5 {[%clk 0:00:10]} 47. e6
{[%clk 0:00:07.7]} 47... Nxb7 {[%clk 0:00:08.8]} 48. e7 {[%clk 0:00:08]} 48...
Rc8 {[%clk 0:00:07.7]} 49. e8=Q+ {[%clk 0:00:06.8]} 49... Rxe8 {[%clk
0:00:08.6]} 50. Rxe8 {[%clk 0:00:07.1]} 50... Nc4 {[%clk 0:00:08.8]} 51. Rb8
{[%clk 0:00:05.3]} 51... Nbd6 {[%clk 0:00:09]} 52. Kf3 {[%clk 0:00:02]} 52... b2
{[%clk 0:00:08.6]} 53. Bxb2 {[%clk 0:00:02]} 53... Nxb2 {[%clk 0:00:09.5]} 54.
Ke3 {[%clk 0:00:02.5]} 54... Nbc4+ {[%clk 0:00:09.8]} 55. Kd4 {[%clk 0:00:03]}
55... Nxa3 {[%clk 0:00:10.4]} 56. Kd5 {[%clk 0:00:03.4]} 56... Nac4 {[%clk
0:00:11.3]} 57. Rd8 {[%clk 0:00:01.6]} 57... Kg5 {[%clk 0:00:10.6]} 58. Rd7
{[%clk 0:00:02]} 58... Kxg4 {[%clk 0:00:10.5]} 59. Re7 {[%clk 0:00:02.9]} 59...
Kf4 {[%clk 0:00:10.6]} 60. Re6 {[%clk 0:00:03.4]} 60... Kf5 {[%clk 0:00:10.6]}
61. Re3 {[%clk 0:00:02.7]} 61... Nxe3+ {[%clk 0:00:10.4]} 62. Kxd6 {[%clk
0:00:03.2]} 62... b4 {[%clk 0:00:10.7]} 63. Kc5 {[%clk 0:00:03.1]} 63... b3
{[%clk 0:00:11.6]} 64. Kd4 {[%clk 0:00:03.8]} 64... b2 {[%clk 0:00:12.5]} 65.
Kxe3 {[%clk 0:00:04.6]} 65... b1=Q {[%clk 0:00:12.2]} 0-1